[Event "FIDE Candidates 2024"]
[Site "Toronto"]
[Date "2024.04.04"]
[Round "1.2"]
[White "Abasov, Nijat"]
[Black "Nepomniachtchi, Ian"]
[Result "1/2-1/2"]
[ECO "D53"]
[WhiteElo "2632"]
[BlackElo "2758"]
[Annotator "TA"]
[PlyCount "67"]
[EventDate "2024.04.02"]
[EventType "tourn"]
[EventCountry "CAN"]
[SourceTitle "playchess.com"]
[Source "ChessBase"]
[SourceQuality "1"]
[TimeControl "40/7200:1800+30"]

{[%evp 10,67,17,17,14,21,28,22,22,0,2,0,12,0,26,-15,-5,-13,-10,-12,-10,-11,-7,-32,-36,-30,-34,-37,-37,-31,-36,-21,-35,-35,-37,-31,-31,-32,-25,-23,-31,-27,-19,-27,-25,-25,-11,-8,-21,-19,-8,-11,0,-13,0,-10,0,-13,0,-14]} 1. d4 {[%emt 0:00:07]} Nf6 {[%emt 0:00:09]} 2. c4 {[%emt 0:00:04]} e6 {[%emt 0:00:08]} 3. Nc3 {[%emt 0:00:04]} d5 {[%emt 0:00:09]} 4. Bg5 {[%emt 0:00:48]} Be7 {[%emt 0:00:08]} 5. e3 {[%emt 0:00:33]} h6 {[%emt 0:00:30]} 6. Bh4 {[%emt 0:00:59]} dxc4 {[%emt 0:00:52]} 7. Bxc4 {[%emt 0:00:06]} c5 {[%emt 0:04:33]} 8. Nf3 {[%emt 0:01:08]} cxd4 {[%emt 0:00:13]} 9. exd4 {[%emt 0:00:12]} Nc6 {[%emt 0:00:01]} 10. O-O {[%emt 0:00:13]} O-O {[%emt 0:00:20]} 11. Re1 {[%emt 0:00:37]} a6 {[%emt 0:18:05]} 12. Rc1 {[%emt 0:01:52]} b5 {[%emt 0:03:21]} 13. Bb3 {[%emt 0:02:45]} Bb7 {[%emt 0:02:24]} 14. Bxf6 {[%emt 0:00:40]} Bxf6 {[%emt 0:00:13]} 15. d5 {[%emt 0:02:52]} exd5 {[%emt 0:00:53]} 16. Nxd5 {[%emt 0:04:16]} Na5 {[%emt 0:02:17]} 17. Nxf6+ {[%emt 0:00:58]} Qxf6 {[%emt 0:02:17]} 18. Qd4 {[%emt 0:06:47]} Qxd4 {[%emt 0:00:05]} 19. Nxd4 {[%emt 0:00:42]} Rad8 {[%emt 0:01:31]} 20. Rcd1 {[%emt 0:07:01]} Nxb3 {[%emt 0:06:20]} 21. Nxb3 {[%emt 0:02:24]} Bd5 {[%emt 0:11:34]} 22. f3 {[%emt 0:06:18]} Bxb3 {[%emt 0:00:11]} 23. axb3 {[%emt 0:00:12]} Rxd1 {[%emt 0:00:00]} 24. Rxd1 $15 {[%emt 0:00:16][%mdl 4096] Endgame. KR-KR} Rc8 {[%emt 0:00:00]} 25. Rd2 $1 {[%emt 0:00:45] Against Rc2} Kf8 {[%emt 0:01:27]} 26. Re2 {[%emt 0:01:54]} Rd8 {[%emt 0:00:12]} 27. Kf2 $1 {[%emt 0:00:38]} Rd4 {[%emt 0:03:40]} 28. Re4 {[%emt 0:01:24] The position is equal.} Rd1 {[%emt 0:05:47]} 29. Re1 {[%emt 0:05:50]} Rd2+ {[%emt 0:00:07]} 30. Re2 {[%emt 0:00:24]} Rd4 {[%emt 0:00:14]} 31. Re4 {[%emt 0:01:35]} Rd1 {[%emt 0:00:11]} 32. Re1 {[%emt 0:00:11]} Rd2+ {[%emt 0:00:21]} 33. Re2 {[%emt 0:13:46]} Rd4 {[%emt 0:00:29]} 34. Re4 {[%emt 0:00:15] Weighted Error Value: White=0.05 (flawless) /Black=0.04 (flawless) .  Inaccurate:     	White=1     	Black=1      OK:         	White=11    	Black=13     Best:        	White=2     	Black=1      Strong:       	White=2     	---} 1/2-1/2

[Event "FIDE Candidates 2024"]
[Site "Toronto"]
[Date "2024.04.05"]
[Round "3.2"]
[White "Abasov, Nijat"]
[Black "Nakamura, Hikaru"]
[Result "1/2-1/2"]
[ECO "D13"]
[WhiteElo "2632"]
[BlackElo "2789"]
[Annotator "TA"]
[PlyCount "57"]
[EventDate "2024.04.02"]
[EventType "tourn"]
[EventCountry "CAN"]
[SourceTitle "playchess.com"]
[Source "ChessBase"]
[SourceQuality "1"]
[TimeControl "40/7200:1800+30"]

{[%evp 27,57,10,10,0,16,0,14,14,8,3,10,0,10,5,12,8,7,0,6,0,10,8,10,0,4,0,15,0,2,0,15,0]} 1. d4 {[%emt 0:00:04]} d5 {[%emt 0:00:11]} 2. c4 {[%emt 0:00:14]} c6 {[%emt 0:00:05]} 3. cxd5 {[%emt 0:00:57]} cxd5 {[%emt 0:00:06]} 4. Nc3 {[%emt 0:00:05]} Nf6 {[%emt 0:00:12]} 5. Nf3 {[%emt 0:00:33]} Nc6 {[%emt 0:00:05]} 6. Bf4 {[%emt 0:00:13]} a6 {[%emt 0:00:16]} 7. e3 {[%emt 0:00:21]} Bg4 {[%emt 0:00:51]} 8. h3 {[%emt 0:01:05]} Bxf3 {[%emt 0:00:35]} 9. Qxf3 {[%emt 0:00:05]} e6 {[%emt 0:00:03]} 10. Rc1 {[%emt 0:01:04]} Bd6 {[%emt 0:00:07]} 11. Bd3 {[%emt 0:00:31]} Bxf4 {[%emt 0:28:29]} 12. Qxf4 {[%emt 0:01:54]} O-O {[%emt 0:00:05]} 13. O-O {[%emt 0:00:08]} Rc8 {[%emt 0:01:27]} 14. Qf3 {[%emt 0:02:34]} Qd6 {[%emt 0:08:40] The position is equal.} 15. Qe2 {[%emt 0:00:46]} Nd7 {[%emt 0:03:32]} 16. Qd2 {[%emt 0:05:10]} Ne7 {[%emt 0:01:23]} 17. Ne2 {[%emt 0:00:40][%cal Bc3e2,Be2c1,Bc1b3][%mdl 32]} g6 {[%emt 0:01:37]} 18. Rxc8 {[%emt 0:01:01]} Rxc8 {[%emt 0:00:04]} 19. Rc1 {[%emt 0:00:06]} Rxc1+ {[%emt 0:05:39]} 20. Nxc1 {[%emt 0:01:36]} Nc6 {[%emt 0:01:14]} 21. Nb3 {[%emt 0:05:56]} Qb4 {[%emt 0:05:32]} 22. Qxb4 {[%emt 0:02:14]} Nxb4 $11 {[%emt 0:00:03][%mdl 4096] Endgame. KBN-KNN} 23. Bb1 {[%emt 0:00:08]} Nc6 {[%emt 0:00:24]} 24. Kf1 {[%emt 0:05:49]} b6 {[%emt 0:02:47]} 25. Bd3 {[%emt 0:01:36]} Nb4 {[%emt 0:01:27]} 26. Bb1 {[%emt 0:01:17]} Nc6 {[%emt 0:00:03]} 27. Bd3 {[%emt 0:00:06]} Nb4 {[%emt 0:00:03]} 28. Bb1 {[%emt 0:00:05]} Nc6 {[%emt 0:00:04]} 29. Bd3 {[%emt 0:00:28] A rather calm draw.   Weighted Error Value: White=0.05 (flawless) /Black=0.04 (flawless) .  OK:         	White=5     	Black=6} 1/2-1/2

[Event "FIDE Candidates 2024"]
[Site "Toronto"]
[Date "2024.04.07"]
[Round "4.4"]
[White "Abasov, Nijat"]
[Black "Firouzja, Alireza"]
[Result "1/2-1/2"]
[ECO "E32"]
[WhiteElo "2632"]
[BlackElo "2760"]
[Annotator "TA"]
[PlyCount "127"]
[EventDate "2024.04.02"]
[EventType "tourn"]
[EventCountry "CAN"]
[SourceTitle "playchess.com"]
[Source "ChessBase"]
[SourceQuality "1"]
[TimeControl "40/7200:1800+30"]

{[%evp 31,127,0,0,0,0,0,0,0,-4,-10,0,0,0,0,0,0,0,0,0,-48,-48,-55,-31,-48,-48,-67,-66,-66,-66,-66,-55,-55,-55,-55,-55,-55,-55,-47,0,0,0,0,0,0,0,0,0,0,0,0,0,0,0,0,0,-12,-12,-12,-12,-12,-12,-12,-12,-12,-12,-12,-12,-12,0,0,0,0,0,0,0,0,0,0,0,0,0,0,0,0,0,0,0,0,0,0,0,0,0,0,0,0,0,0]} 1. d4 {[%emt 0:00:02]} Nf6 {[%emt 0:00:06]} 2. c4 {[%emt 0:00:04]} e6 {[%emt 0:00:04]} 3. Nc3 {[%emt 0:00:08]} Bb4 {[%emt 0:00:07]} 4. Qc2 {[%emt 0:00:03]} d6 {[%emt 0:01:11]} 5. e3 {[%emt 0:00:16]} O-O {[%emt 0:01:31]} 6. Bd3 {[%emt 0:00:07] E32: Nimzo-Indian: Classical (4 Qc2): 4...0-0.} c5 {[%emt 0:00:14]} 7. dxc5 {[%emt 0:00:39]} Bxc5 {[%emt 0:00:27]} 8. Nf3 {[%emt 0:02:10]} d5 {[%emt 0:00:13]} 9. O-O {[%emt 0:03:19]} dxc4 {[%emt 0:00:57]} 10. Bxc4 {[%emt 0:00:08]} Nbd7 {[%emt 0:00:04]} 11. b3 {[%emt 0:08:09]} a6 {[%emt 0:05:18]} 12. Bd3 {[%emt 0:06:26]} b5 $146 {[%emt 0:06:10]} ({Predecessor:} 12... h6 13. Bb2 Qc7 14. Rac1 Bd6 15. Qe2 Qb8 16. Bb1 b5 17. Rfd1 Bb7 18. h3 Rd8 {1-0 Jap Tjoen San,L (2175)-Carvalho,A (2130) EU-ch rapid (Women) 1997 (9)}) 13. Ne4 {[%emt 0:03:05]} Bb7 {[%emt 0:02:41]} 14. Nxc5 {[%emt 0:00:10]} Nxc5 {[%emt 0:00:07]} 15. Bxb5 {[%emt 0:22:53]} Nxb3 {[%emt 0:10:18]} 16. Qxb3 {[%emt 0:00:14]} axb5 {[%emt 0:00:55]} 17. Rd1 {[%emt 0:01:26]} Qc7 {[%emt 0:06:06]} 18. Bb2 {[%emt 0:07:02]} Qc5 {[%emt 0:13:52]} 19. Bxf6 {[%emt 0:13:40]} gxf6 {[%emt 0:04:48]} 20. Rac1 {[%emt 0:00:10]} Qf5 {[%emt 0:14:46]} 21. Nd4 {[%emt 0:01:06]} Qg5 {[%emt 0:01:59]} 22. Nc6 {[%emt 0:04:47]} (22. Nxb5 $2 Qxg2#) 22... Ra6 {[%emt 0:04:50]} 23. h4 $1 {[%emt 0:01:18]} Qxh4 {[%emt 0:03:27]} 24. Qxb5 {[%emt 0:08:58]} Rxa2 {[%emt 0:00:43]} 25. g3 {[%emt 0:03:41]} (25. Qxb7 $2 {is a self mate.} Qxf2+ 26. Kh2 Qxg2#) (25. Ne7+ $11 {is superior.} Kg7 26. Qxb7 Qxf2+ 27. Kh1) 25... Bxc6 $15 {[%emt 0:00:47]} 26. Qxc6 {[%emt 0:00:04]} Qh5 {[%emt 0:01:56]} 27. Kg2 {[%emt 0:02:54]} Rb8 {[%emt 0:06:46]} 28. Qf3 {[%emt 0:01:23]} Qg6 {[%emt 0:05:13]} (28... Qxf3+ {simplifies} 29. Kxf3 Rbb2 30. Rf1 h5) 29. Ra1 {[%emt 0:00:58]} Rxa1 {[%emt 0:00:30]} 30. Rxa1 {[%emt 0:00:05]} Kg7 {[%emt 0:00:30]} 31. Ra4 {[%emt 0:01:14]} Rb5 {[%emt 0:00:42]} 32. Rf4 {[%emt 0:00:34]} h5 {[%emt 0:02:06]} 33. e4 {[%emt 0:05:56]} Rg5 {[%emt 0:00:47]} 34. Kh3 {[%emt 0:00:03]} e5 {[%emt 0:04:24]} (34... Ra5 $15) 35. Rf5 $1 $11 {[%emt 0:00:47]} Rxf5 {[%emt 0:01:12]} 36. Qxf5 {[%emt 0:00:26]} Kh6 {[%emt 0:00:20]} 37. Qf3 {[%emt 0:03:30]} Qg5 {[%emt 0:00:42]} 38. Qd1 $1 {[%emt 0:01:12]} Kg7 {[%emt 0:02:27]} 39. Qf3 $1 {[%emt 0:01:16]} Kg6 {[%emt 0:00:35]} 40. Qd1 $1 {[%emt 0:00:00]} f5 {[%emt 0:01:57]} 41. Qd6+ $1 {[%emt 0:01:41]} Qf6 {[%emt 0:00:36]} 42. exf5+ {[%emt 0:00:10]} Kxf5 {[%emt 0:00:08]} 43. Qd3+ {[%emt 0:02:19]} Kg5 {[%emt 0:00:43]} 44. Qe3+ {[%emt 0:00:13]} Kg6 {[%emt 0:00:06]} 45. Kg2 {[%emt 0:00:53]} Qc6+ {[%emt 0:00:17]} 46. Kh2 {[%emt 0:00:05]} Qd5 {[%emt 0:02:15]} 47. Qb6+ {[%emt 0:00:11]} f6 {[%emt 0:01:43]} 48. Qb8 {[%emt 0:01:43]} Qe6 {[%emt 0:05:55]} 49. Qa8 {[%emt 0:01:06]} f5 {[%emt 0:00:28]} 50. Qd8 {[%emt 0:02:16]} Qf6 {[%emt 0:00:39]} 51. Qe8+ {[%emt 0:01:51]} Kh6 {[%emt 0:00:30]} 52. Kg2 {[%emt 0:00:36]} f4 {[%emt 0:01:36]} 53. gxf4 {[%emt 0:02:51]} Qxf4 {[%emt 0:00:12]} 54. Qh8+ {[%emt 0:01:46]} Kg5 {[%emt 0:00:12]} 55. Qd8+ {[%emt 0:00:15]} Kg4 {[%emt 0:00:41]} 56. Qd7+ {[%emt 0:02:34]} Kh4 {[%emt 0:00:47]} 57. Qh3+ {[%emt 0:00:04]} Kg5 {[%emt 0:00:16]} 58. Qb3 {[%emt 0:00:09]} e4 {[%emt 0:00:48]} 59. Qc3 {[%emt 0:04:40]} Qg4+ {[%emt 0:00:45]} 60. Kh2 {[%emt 0:00:09]} Kh4 {[%emt 0:01:55]} 61. Qf6+ {[%emt 0:01:18]} Qg5 {[%emt 0:00:05]} 62. Qd6 {[%emt 0:00:25]} Kg4 {[%emt 0:00:40]} 63. Qd1+ {[%emt 0:00:06]} Kf4 {[%emt 0:01:12]} 64. Qd2+ {[%emt 0:00:05]} 1/2-1/2

[Event "FIDE Candidates 2024"]
[Site "Toronto"]
[Date "2024.04.11"]
[Round "7.4"]
[White "Abasov, Nijat"]
[Black "Vidit, Santosh Gujrathi"]
[Result "1/2-1/2"]
[ECO "C65"]
[WhiteElo "2632"]
[BlackElo "2727"]
[Annotator "TA"]
[PlyCount "101"]
[EventDate "2024.04.02"]
[EventType "tourn"]
[EventCountry "CAN"]
[SourceTitle "playchess.com"]
[Source "ChessBase"]
[SourceQuality "1"]
[TimeControl "40/7200:1800+30"]

{[%evp 37,101,-13,0,-29,0,0,7,0,0,0,0,-10,-8,-13,7,0,41,47,60,42,43,0,21,0,0,-151,-139,-139,-140,-147,-135,-133,-154,-141,-130,-127,-150,-140,0,0,0,-209,-145,-172,-183,-143,0,0,0,0,0,0,0,0,0,0,0,0,0,0,0,0,0,0,0,0]} 1. e4 {[%emt 0:00:01]} e5 {[%emt 0:03:51]} 2. Nf3 {[%emt 0:00:09]} Nc6 {[%emt 0:00:18]} 3. Bb5 {[%emt 0:00:06]} Nf6 {[%emt 0:05:10]} 4. d3 {[%emt 0:00:10]} Bc5 {[%emt 0:00:30]} 5. Bxc6 {[%emt 0:00:07]} dxc6 {[%emt 0:00:12]} 6. O-O {[%emt 0:00:19] C65: Ruy Lopez: Berlin Defence (3...Nf6), unusual lines and 4 0-0 Bc5.} Nd7 {[%emt 0:00:52]} 7. Nc3 {[%emt 0:00:41]} Qe7 {[%emt 0:14:40]} 8. Be3 {[%emt 0:07:51]} Bxe3 {[%emt 0:00:46]} 9. fxe3 {[%emt 0:00:07]} b6 {[%emt 0:00:19]} 10. a3 $146 {[%emt 0:01:11]} ({Predecessor:} 10. Qe1 Bb7 11. Qg3 f6 12. a3 a5 13. Nd2 h5 14. Nf3 g5 15. h4 Rg8 16. hxg5 fxg5 {1-0 Anand,V (2751)-So,W (2776) Warsaw Superbet Classic Blitz 2022 (6.5)}) 10... Bb7 {[%emt 0:04:54]} 11. b4 {[%emt 0:02:05]} a5 {[%emt 0:00:47]} 12. Ne2 {[%emt 0:02:06]} O-O {[%emt 0:13:20]} 13. Ng3 {[%emt 0:00:50]} g6 {[%emt 0:03:42]} 14. Qd2 {[%emt 0:00:08]} c5 {[%emt 0:10:18]} 15. Qc3 {[%emt 0:00:29]} f6 {[%emt 0:02:05]} 16. Rfb1 {[%emt 0:13:08]} Rf7 {[%emt 0:05:46]} 17. Nd2 {[%emt 0:02:22]} h5 {[%emt 0:03:19]} 18. Nf3 {[%emt 0:10:30]} Qe6 {[%emt 0:03:22]} 19. h3 {[%emt 0:01:51]} Kg7 {[%emt 0:02:36]} 20. Kh2 {[%emt 0:00:30]} Qd6 {[%emt 0:08:50]} 21. Nh4 {[%emt 0:08:16]} Kh7 {[%emt 0:01:09]} 22. Qe1 {[%emt 0:05:02]} Rg7 {[%emt 0:02:53]} 23. Qe2 {[%emt 0:01:24]} Qe6 {[%emt 0:01:33]} (23... cxb4 $2 24. Nxg6 Rxg6 25. Nf5 $18) 24. c3 {[%emt 0:03:23]} Kg8 {[%emt 0:04:10]} 25. Rf1 {[%emt 0:02:17]} a4 {[%emt 0:01:31]} (25... b5 {with more complications.} 26. d4 exd4 27. exd4 cxd4 28. cxd4 Qd6) 26. c4 {[%emt 0:03:22]} Rd8 {[%emt 0:00:58]} 27. Qc2 {[%emt 0:03:08]} Nf8 {[%emt 0:01:14]} 28. bxc5 {[%emt 0:00:18]} (28. Qxa4 cxb4 (28... Rxd3 29. Qa7 $11) 29. axb4 Rxd3 $11) 28... bxc5 {[%emt 0:00:03]} 29. Rf3 {[%emt 0:02:51]} Bc6 {[%emt 0:00:43]} 30. Raf1 {[%emt 0:07:41]} Nh7 {[%emt 0:00:09]} 31. Ne2 $2 {[%emt 0:00:42]} (31. Rd1 $11) 31... Qd6 $17 {[%emt 0:00:43]} 32. Nc1 {[%emt 0:03:02]} f5 $1 {[%emt 0:00:45]} 33. R3f2 {[%emt 0:04:21]} fxe4 {[%emt 0:00:49]} 34. dxe4 {[%emt 0:00:06]} Qe7 {[%emt 0:00:29]} 35. Nf3 {[%emt 0:01:09]} g5 $1 {[%emt 0:00:55]} 36. g3 {[%emt 0:03:49]} Nf6 {[%emt 0:06:04]} 37. Nd2 {[%emt 0:03:38]} (37. Nxg5 $2 Ng4+ 38. hxg4 Qxg5 $19 (38... Rxg5 39. Rf7 $15)) 37... Rd6 {[%emt 0:01:12]} (37... Qd6 $17 {[%cal Og7d7] Strongly threatening ...Rgd7!} 38. Kg1 Rf7) 38. Ne2 $11 {[%emt 0:00:53]} Bd7 {[%emt 0:03:26]} 39. Nb1 $2 {[%emt 0:04:22]} (39. Nc3 $11 {and White is okay.} Rf7 40. Nd5 (40. Nxa4 $2 Qe6 $19)) 39... h4 $1 $19 {[%emt 0:02:05]} 40. Nbc3 {[%emt 0:00:00] [#]} c6 $1 {[%emt 0:00:00]} 41. gxh4 {[%emt 0:01:51] [#]} (41. Nxa4 $2 g4 42. Kh1 (42. Nb6 $2 gxh3 43. Kh1 hxg3 $19) 42... gxh3 43. Nxc5 Bg4 (43... hxg3 $2 44. Nxg3 Rxg3 45. Nxd7 $19) 44. gxh4 Nh5 $19) 41... g4 {[%emt 0:04:41]} ({Black should try} 41... Rh7 $1 $17 {[%cal Rh7h4]} 42. Ng3 (42. Nxa4 $2 {perishes.} Rxh4 43. Ng3 Rxh3+ 44. Kg1 Rxg3+ $19) 42... Rxh4) 42. Ng3 $1 $11 {[%emt 0:01:25]} gxh3 {[%emt 0:05:32]} 43. Rxf6 $1 {[%emt 0:00:21]} Rxf6 {[%emt 0:00:19]} 44. Rxf6 {[%emt 0:00:03]} Qxf6 {[%emt 0:00:58]} 45. Nh5 {[%emt 0:00:04]} Qxh4 {[%emt 0:00:31]} ({Wrong is} 45... Qf2+ $2 46. Qxf2 Rf7 47. Qg3+ Kf8 48. Nxa4 $18 (48. Qxe5 Be8 $18)) 46. Nxg7 {[%emt 0:00:06]} Kxg7 {[%emt 0:00:06]} 47. Qd2 {[%emt 0:05:21]} Bc8 {[%emt 0:03:45]} 48. Qe2 {[%emt 0:04:59]} Bg4 {[%emt 0:01:06]} 49. Qd2 {[%emt 0:00:44]} Bc8 {[%emt 0:06:28]} 50. Qe2 {[%emt 0:00:07]} Bg4 {[%emt 0:03:26]} 51. Qd2 {[%emt 0:00:33]} 1/2-1/2

[Event "FIDE Candidates 2024"]
[Site "Toronto"]
[Date "2024.04.14"]
[Round "9.4"]
[White "Abasov, Nijat"]
[Black "Caruana, Fabiano"]
[Result "1/2-1/2"]
[ECO "E40"]
[WhiteElo "2632"]
[BlackElo "2803"]
[Annotator "TA"]
[PlyCount "87"]
[EventDate "2024.04.02"]
[EventType "tourn"]
[EventCountry "CAN"]
[SourceTitle "playchess.com"]
[Source "ChessBase"]
[SourceQuality "1"]
[TimeControl "40/7200:1800+30"]

{[%evp 10,87,14,0,27,33,28,0,5,-5,-2,-21,2,-21,-24,-19,-16,-18,-29,-29,-33,-27,-39,-24,-32,-32,-34,-31,-33,-54,-19,-29,-13,-16,-6,-25,-4,-18,0,0,0,0,0,0,2,0,0,0,6,0,10,0,0,0,0,0,0,0,0,0,0,0,22,8,28,0,0,0,0,0,0,0,0,0,8,3,6,6,8,1]} 1. d4 {[%emt 0:00:02]} d5 {[%emt 0:00:04]} 2. c4 {[%emt 0:00:05]} e6 {[%emt 0:00:03]} 3. Nc3 {[%emt 0:00:08]} Bb4 {[%emt 0:00:06]} 4. a3 {[%emt 0:03:15]} Bxc3+ {[%emt 0:00:19]} 5. bxc3 {[%emt 0:00:05]} Nf6 {[%emt 0:00:24]} 6. e3 {[%emt 0:00:32]} c6 {[%emt 0:00:09]} 7. a4 {[%emt 0:03:43]} O-O {[%emt 0:00:32]} 8. Bd3 {[%emt 0:03:31]} e5 {[%emt 0:16:08]} 9. dxe5 {[%emt 0:15:16]} dxc4 {[%emt 0:02:46]} 10. Bxc4 {[%emt 0:09:28] [#] Qxd8 would now be deadly.} Qxd1+ {[%emt 0:00:21]} 11. Kxd1 {[%emt 0:00:04]} Ng4 {[%emt 0:00:16][%csl LRe5,LRf2]} 12. Ke1 {[%emt 0:02:48] Strongly threatening f4.} Nxe5 {[%emt 0:00:11]} 13. Be2 {[%emt 0:00:04]} Rd8 {[%emt 0:18:07]} 14. Nf3 {[%emt 0:15:38]} Nd3+ {[%emt 0:00:07]} 15. Bxd3 {[%emt 0:00:03]} Rxd3 {[%emt 0:00:04]} 16. Bb2 {[%emt 0:00:22][%cal Bc1b2,Bb2c3,Bc3e5][%mdl 32] White is weak on the light squares} Be6 {[%emt 0:04:27]} 17. Ke2 {[%emt 0:02:18]} Rd8 {[%emt 0:07:46]} 18. Nd2 {[%emt 0:15:12] Dodges Bc4+} c5 {[%emt 0:07:59]} 19. c4 {[%emt 0:06:03]} Nc6 {[%emt 0:12:38]} 20. a5 {[%emt 0:00:21]} Rd7 {[%emt 0:02:16]} 21. Bc3 {[%emt 0:04:02]} Rad8 {[%emt 0:00:20][%cal Oc6e5]} 22. Rhc1 {[%emt 0:00:08]} h6 {[%emt 0:07:55]} 23. Rab1 {[%emt 0:01:10]} Bf5 {[%emt 0:11:03] [#] White must now prevent ...Bd3+.} (23... Ne5 {simplifies} 24. Bxe5 Rxd2+ 25. Ke1 Ra2) 24. Rb5 {[%emt 0:02:14]} Ne5 {[%emt 0:04:14]} 25. Bxe5 {[%emt 0:00:26]} ({Reject} 25. Rxc5 Nd3 26. Rxf5 Nxc1+ 27. Ke1 Rd3 $17) 25... Rxd2+ {[%emt 0:00:04]} 26. Kf3 {[%emt 0:00:20]} Ra2 {[%emt 0:03:26]} 27. Rxb7 {[%emt 0:15:05]} Rdd2 {[%emt 0:01:21]} 28. Bg3 {[%emt 0:00:15]} a6 {[%emt 0:02:22]} 29. Rc7 {[%emt 0:01:28]} Rxa5 {[%emt 0:00:52]} 30. h4 {[%emt 0:01:29]} h5 {[%emt 0:02:01]} 31. Kf4 {[%emt 0:01:01]} Be6 {[%emt 0:02:51]} 32. Ke5 {[%emt 0:03:45]} Kh7 {[%emt 0:00:39]} 33. Ke4 {[%emt 0:01:24]} Rb2 {[%emt 0:01:05]} 34. Rc3 {[%emt 0:01:38]} Rd2 {[%emt 0:03:31]} 35. Rc1 {[%emt 0:01:10]} Rd8 {[%emt 0:00:41]} 36. Rc6 {[%emt 0:01:54][%cal Oc6e6] And now Rxe6! would win.} Rd7 {[%emt 0:00:30]} 37. Bd6 {[%emt 0:00:27]} Ra4 {[%emt 0:00:13] The position is equal.} 38. Kf3 {[%emt 0:00:49]} f6 {[%emt 0:01:09]} 39. Kg3 {[%emt 0:00:56]} Bxc4 {[%emt 0:00:05]} 40. Rxc5 {[%emt 0:00:00]} Bf7 {[%emt 0:00:00]} 41. Bf4 {[%emt 0:05:22]} Rb4 {[%emt 0:01:39]} 42. Rc7 {[%emt 0:00:32]} Rb7 {[%emt 0:00:23]} 43. Rxd7 {[%emt 0:00:14]} Rxd7 {[%emt 0:00:04]} 44. Rc7 {[%emt 0:00:19] Weighted Error Value: White=0.04 (flawless) /Black=0.05 (flawless) .  Inaccurate:     	White=1     	Black=1      OK:         	White=21    	Black=16     Best:        	White=1     	Black=3} 1/2-1/2